[Event "Early Titled Tuesday Blitz | February 8 2022"]
[White "Rytenko, Vsevolod"]
[Black "Necula, Iulian"]
[WhiteFideId "14133040"]
[BlackFideId "1232380"]
[WhiteElo "2144"]
[BlackElo "1776"]
[Result "1-0"]
[Round "05"]
[TimeControl "180+1"]
[Date "2022.02.08"]
[WhiteClock "0:00:28"]
[BlackClock "0:00:02"]

1. d4 {[%clk 0:03:00]}  d6 {[%clk 0:02:59]} 2. c4 {[%clk 0:03:00]}  f5 {[%clk 0:02:59]} 3. e4 {[%clk 0:02:52]}  fxe4 {[%clk 0:02:58]} 4. Nc3 {[%clk 0:02:53]}  Nf6 {[%clk 0:02:58]} 5. Bg5 {[%clk 0:02:52]}  Bf5 {[%clk 0:02:57]} 6. Nge2 {[%clk 0:02:45]}  h6 {[%clk 0:02:33]} 7. Bxf6 {[%clk 0:02:44]}  exf6 {[%clk 0:02:32]} 8. Ng3 {[%clk 0:02:44]}  Bg6 {[%clk 0:02:31]} 9. Ngxe4 {[%clk 0:02:41]}  Qe7 {[%clk 0:02:26]} 10. Qg4 {[%clk 0:02:16]}  Bxe4 {[%clk 0:02:15]} 11. Nxe4 {[%clk 0:02:10]}  Nc6 {[%clk 0:02:09]} 12. Qg6+ {[%clk 0:02:01]}  Qf7 {[%clk 0:02:04]} 13. Qxf7+ {[%clk 0:02:01]}  Kxf7 {[%clk 0:02:05]} 14. O-O-O {[%clk 0:02:01]}  f5 {[%clk 0:01:58]} 15. Nc3 {[%clk 0:02:00]}  a6 {[%clk 0:01:56]} 16. g3 {[%clk 0:01:59]}  Ne7 {[%clk 0:01:46]} 17. c5 {[%clk 0:01:43]}  d5 {[%clk 0:01:38]} 18. Bg2 {[%clk 0:01:38]}  c6 {[%clk 0:01:38]} 19. Rhe1 {[%clk 0:01:38]}  g5 {[%clk 0:01:22]} 20. Kc2 {[%clk 0:01:31]}  Ng6 {[%clk 0:01:21]} 21. Kd3 {[%clk 0:01:30]}  Bg7 {[%clk 0:01:18]} 22. Nxd5 {[%clk 0:01:22]}  cxd5 {[%clk 0:01:16]} 23. Bxd5+ {[%clk 0:01:23]}  Kf6 {[%clk 0:01:14]} 24. Re6+ {[%clk 0:01:20]}  Kf7 {[%clk 0:01:14]} 25. Rxa6+ {[%clk 0:01:05]}  Ke7 {[%clk 0:00:55]} 26. Rxg6 {[%clk 0:01:02]}  Rh7 {[%clk 0:00:24]} 27. Bxb7 {[%clk 0:00:51]}  Rd8 {[%clk 0:00:21]} 28. Kc4 {[%clk 0:00:46]}  Bf6 {[%clk 0:00:16]} 29. d5 {[%clk 0:00:37]}  Kf7 {[%clk 0:00:16]} 30. Rxf6+ {[%clk 0:00:36]}  Kxf6 {[%clk 0:00:16]} 31. c6 {[%clk 0:00:36]}  Rd6 {[%clk 0:00:15]} 32. Kc5 {[%clk 0:00:35]}  Rd8 {[%clk 0:00:04]} 33. d6 {[%clk 0:00:35]}  Ke6 {[%clk 0:00:04]} 34. c7 {[%clk 0:00:33]}  Rhh8 {[%clk 0:00:02]} 35. Re1+ {[%clk 0:00:29]}  Kd7 {[%clk 0:00:02]} 36. Re7# {[%clk 0:00:28]} 1-0


[Site "https://www.chess.com"]

[Event "Early Titled Tuesday Blitz | February 8 2022"]
[White "Sarkar, Justin"]
[Black "Cramling Bellon, Anna"]
[WhiteFideId "2010011"]
[BlackFideId "32009232"]
[WhiteElo "2038"]
[BlackElo "1905"]
[Result "1-0"]
[Round "05"]
[TimeControl "180+1"]
[Date "2022.02.08"]
[WhiteClock "0:00:23"]
[BlackClock "0:00:01"]

1. d4 {[%clk 0:02:56]}  Nf6 {[%clk 0:02:58]} 2. c4 {[%clk 0:02:55]}  e6 {[%clk 0:02:56]} 3. Nc3 {[%clk 0:02:47]}  d5 {[%clk 0:02:47]} 4. Nf3 {[%clk 0:02:45]}  Be7 {[%clk 0:02:47]} 5. e3 {[%clk 0:02:44]}  c6 {[%clk 0:02:47]} 6. Bd3 {[%clk 0:02:31]}  O-O {[%clk 0:02:42]} 7. O-O {[%clk 0:02:30]}  dxc4 {[%clk 0:02:41]} 8. Bxc4 {[%clk 0:02:30]}  b5 {[%clk 0:02:42]} 9. Bd3 {[%clk 0:02:23]}  Bb7 {[%clk 0:02:42]} 10. Qe2 {[%clk 0:02:02]}  Nbd7 {[%clk 0:02:41]} 11. e4 {[%clk 0:01:56]}  a6 {[%clk 0:02:39]} 12. e5 {[%clk 0:01:51]}  Nd5 {[%clk 0:02:36]} 13. Qe4 {[%clk 0:01:48]}  g6 {[%clk 0:02:31]} 14. Bh6 {[%clk 0:01:48]}  Re8 {[%clk 0:02:28]} 15. Nxd5 {[%clk 0:01:47]}  cxd5 {[%clk 0:01:55]} 16. Qg4 {[%clk 0:01:45]}  Rc8 {[%clk 0:01:36]} 17. h4 {[%clk 0:01:41]}  Bf8 {[%clk 0:01:16]} 18. Bxf8 {[%clk 0:01:35]}  Nxf8 {[%clk 0:01:15]} 19. h5 {[%clk 0:01:31]}  f5 {[%clk 0:01:08]} 20. exf6 {[%clk 0:01:27]}  Qxf6 {[%clk 0:01:08]} 21. hxg6 {[%clk 0:01:23]}  Nxg6 {[%clk 0:00:52]} 22. Ne5 {[%clk 0:01:16]}  Kg7 {[%clk 0:00:52]} 23. f4 {[%clk 0:00:48]}  Rg8 {[%clk 0:00:24]} 24. f5 {[%clk 0:00:38]}  exf5 {[%clk 0:00:24]} 25. Rxf5 {[%clk 0:00:35]}  Qb6 {[%clk 0:00:19]} 26. Rf7+ {[%clk 0:00:30]}  Kh8 {[%clk 0:00:19]} 27. Bxg6 {[%clk 0:00:26]}  Rxg6 {[%clk 0:00:13]} 28. Nxg6+ {[%clk 0:00:26]}  Qxg6 {[%clk 0:00:07]} 29. Qxg6 {[%clk 0:00:26]}  hxg6 {[%clk 0:00:08]} 30. Rxb7 {[%clk 0:00:26]}  Rc2 {[%clk 0:00:08]} 31. b3 {[%clk 0:00:25]}  Rd2 {[%clk 0:00:08]} 32. Rb6 {[%clk 0:00:25]}  Rxd4 {[%clk 0:00:07]} 33. Rxg6 {[%clk 0:00:25]}  a5 {[%clk 0:00:07]} 34. Ra6 {[%clk 0:00:23]}  a4 {[%clk 0:00:07]} 35. Ra5 {[%clk 0:00:23]}  Rb4 {[%clk 0:00:06]} 36. bxa4 {[%clk 0:00:23]}  bxa4 {[%clk 0:00:02]} 37. Rxd5 {[%clk 0:00:23]}  a3 {[%clk 0:00:02]} 38. Rd7 {[%clk 0:00:23]}  Rb2 {[%clk 0:00:01]} 39. Rc1 {[%clk 0:00:23]}  Rxa2 {[%clk 0:00:01]} 40. Rc8# {[%clk 0:00:23]} 1-0


[Site "https://www.chess.com"]

[Event "Early Titled Tuesday Blitz | February 8 2022"]
[White "Sharapov, Evgeny"]
[Black "Moroni, Luca Jr"]
[WhiteFideId "14103133"]
[BlackFideId "865834"]
[WhiteElo "2367"]
[BlackElo "2573"]
[Result "0-1"]
[Round "05"]
[TimeControl "180+1"]
[Date "2022.02.08"]
[WhiteClock "0:00:19"]
[BlackClock "0:00:22"]

1. e4 {[%clk 0:02:59]}  g6 {[%clk 0:03:00]} 2. d4 {[%clk 0:02:59]}  Bg7 {[%clk 0:03:01]} 3. Nc3 {[%clk 0:02:59]}  d6 {[%clk 0:03:01]} 4. f4 {[%clk 0:02:58]}  Nf6 {[%clk 0:03:01]} 5. Nf3 {[%clk 0:02:57]}  O-O {[%clk 0:03:01]} 6. Bd3 {[%clk 0:02:57]}  Nc6 {[%clk 0:03:00]} 7. e5 {[%clk 0:02:56]}  dxe5 {[%clk 0:03:01]} 8. fxe5 {[%clk 0:02:56]}  Nd5 {[%clk 0:03:01]} 9. Nxd5 {[%clk 0:02:55]}  Qxd5 {[%clk 0:03:02]} 10. c3 {[%clk 0:02:54]}  f6 {[%clk 0:02:53]} 11. Qe2 {[%clk 0:02:53]}  Kh8 {[%clk 0:02:47]} 12. exf6 {[%clk 0:02:53]}  exf6 {[%clk 0:02:46]} 13. O-O {[%clk 0:02:52]}  Bd7 {[%clk 0:02:44]} 14. Bf4 {[%clk 0:02:49]}  Rae8 {[%clk 0:02:40]} 15. Qf2 {[%clk 0:02:48]}  Rc8 {[%clk 0:02:24]} 16. Rfe1 {[%clk 0:02:48]}  Bf5 {[%clk 0:02:19]} 17. Bxf5 {[%clk 0:02:45]}  Qxf5 {[%clk 0:02:20]} 18. Bg3 {[%clk 0:02:39]}  Qd7 {[%clk 0:02:18]} 19. Re2 {[%clk 0:02:36]}  Rfe8 {[%clk 0:02:14]} 20. Rae1 {[%clk 0:02:35]}  Rxe2 {[%clk 0:02:14]} 21. Qxe2 {[%clk 0:02:34]}  Kg8 {[%clk 0:02:10]} 22. Qe6+ {[%clk 0:02:32]}  Qxe6 {[%clk 0:02:10]} 23. Rxe6 {[%clk 0:02:32]}  Kf7 {[%clk 0:02:10]} 24. Re2 {[%clk 0:02:32]}  Ne7 {[%clk 0:02:08]} 25. Bf4 {[%clk 0:02:21]}  Nd5 {[%clk 0:02:03]} 26. Bd2 {[%clk 0:02:20]}  Bf8 {[%clk 0:02:03]} 27. Kf2 {[%clk 0:02:19]}  c6 {[%clk 0:02:00]} 28. a3 {[%clk 0:02:12]}  Bd6 {[%clk 0:02:00]} 29. c4 {[%clk 0:02:10]}  Nf4 {[%clk 0:01:57]} 30. Bxf4 {[%clk 0:02:10]}  Bxf4 {[%clk 0:01:58]} 31. g3 {[%clk 0:02:09]}  Bc7 {[%clk 0:01:56]} 32. Ke3 {[%clk 0:02:05]}  h5 {[%clk 0:01:54]} 33. Kd3 {[%clk 0:02:04]}  g5 {[%clk 0:01:53]} 34. d5 {[%clk 0:02:00]}  Rd8 {[%clk 0:01:48]} 35. Nd4 {[%clk 0:01:48]}  cxd5 {[%clk 0:01:45]} 36. c5 {[%clk 0:01:45]}  Be5 {[%clk 0:01:35]} 37. b4 {[%clk 0:01:45]}  h4 {[%clk 0:01:07]} 38. Nf3 {[%clk 0:01:35]}  hxg3 {[%clk 0:01:05]} 39. Nxe5+ {[%clk 0:01:31]}  fxe5 {[%clk 0:01:05]} 40. hxg3 {[%clk 0:01:30]}  Ke6 {[%clk 0:01:04]} 41. Rh2 {[%clk 0:01:27]}  Rd7 {[%clk 0:01:03]} 42. g4 {[%clk 0:01:23]}  Rf7 {[%clk 0:01:01]} 43. Rh6+ {[%clk 0:01:19]}  Rf6 {[%clk 0:01:01]} 44. Rh7 {[%clk 0:01:19]}  Rf3+ {[%clk 0:01:01]} 45. Ke2 {[%clk 0:01:17]}  Rxa3 {[%clk 0:01:01]} 46. Rxb7 {[%clk 0:01:16]}  d4 {[%clk 0:01:01]} 47. c6 {[%clk 0:01:15]}  e4 {[%clk 0:00:54]} 48. Rd7 {[%clk 0:01:14]}  Ra2+ {[%clk 0:00:47]} 49. Ke1 {[%clk 0:01:14]}  d3 {[%clk 0:00:47]} 50. b5 {[%clk 0:01:02]}  Ke5 {[%clk 0:00:38]} 51. Rd8 {[%clk 0:00:38]}  Rc2 {[%clk 0:00:36]} 52. Rd7 {[%clk 0:00:33]}  Kf4 {[%clk 0:00:33]} 53. Rxa7 {[%clk 0:00:33]}  e3 {[%clk 0:00:33]} 54. Kf1 {[%clk 0:00:29]}  Kg3 {[%clk 0:00:27]} 55. Ra1 {[%clk 0:00:25]}  Kf3 {[%clk 0:00:21]} 56. b6 {[%clk 0:00:21]}  e2+ {[%clk 0:00:21]} 57. Kg1 {[%clk 0:00:20]}  d2 {[%clk 0:00:22]} 58. b7 {[%clk 0:00:19]}  e1=Q+ {[%clk 0:00:22]} 0-1


[Site "https://www.chess.com"]

[Event "Early Titled Tuesday Blitz | February 8 2022"]
[White "Shevtchenko, Olesya"]
[Black "Di Nicolantonio, Lucas"]
[WhiteFideId "24131890"]
[BlackFideId "680460"]
[WhiteElo "2003"]
[BlackElo "2381"]
[Result "0-1"]
[Round "05"]
[TimeControl "180+1"]
[Date "2022.02.08"]
[WhiteClock "0:00:05"]
[BlackClock "0:00:09"]

1. e4 {[%clk 0:03:00]}  g6 {[%clk 0:02:53]} 2. d4 {[%clk 0:03:00]}  Bg7 {[%clk 0:02:54]} 3. Nf3 {[%clk 0:03:00]}  d6 {[%clk 0:02:54]} 4. Bc4 {[%clk 0:03:00]}  a6 {[%clk 0:02:54]} 5. Bb3 {[%clk 0:03:00]}  e6 {[%clk 0:02:52]} 6. O-O {[%clk 0:02:59]}  Ne7 {[%clk 0:02:53]} 7. Re1 {[%clk 0:02:59]}  b6 {[%clk 0:02:48]} 8. Nbd2 {[%clk 0:02:59]}  Bb7 {[%clk 0:02:46]} 9. Nf1 {[%clk 0:02:59]}  O-O {[%clk 0:02:39]} 10. Ng3 {[%clk 0:02:58]}  h6 {[%clk 0:02:39]} 11. c3 {[%clk 0:02:57]}  c5 {[%clk 0:02:37]} 12. h4 {[%clk 0:02:54]}  Nbc6 {[%clk 0:02:34]} 13. Be3 {[%clk 0:02:32]}  Na5 {[%clk 0:02:06]} 14. Bc2 {[%clk 0:02:24]}  Qc7 {[%clk 0:02:05]} 15. b3 {[%clk 0:02:20]}  Rac8 {[%clk 0:02:04]} 16. Rc1 {[%clk 0:02:20]}  f5 {[%clk 0:01:37]} 17. Qd2 {[%clk 0:02:00]}  Kh7 {[%clk 0:00:55]} 18. h5 {[%clk 0:01:59]}  g5 {[%clk 0:00:42]} 19. Bxg5 {[%clk 0:01:59]}  hxg5 {[%clk 0:00:38]} 20. Nxg5+ {[%clk 0:01:59]}  Kh8 {[%clk 0:00:29]} 21. Nxe6 {[%clk 0:01:57]}  Qd7 {[%clk 0:00:27]} 22. exf5 {[%clk 0:01:04]}  Rf6 {[%clk 0:00:27]} 23. h6 {[%clk 0:01:00]}  Bxh6 {[%clk 0:00:25]} 24. f4 {[%clk 0:00:57]}  Rg8 {[%clk 0:00:24]} 25. Qf2 {[%clk 0:00:50]}  Nxf5 {[%clk 0:00:11]} 26. Ng5 {[%clk 0:00:30]}  Nxg3 {[%clk 0:00:10]} 27. Qxg3 {[%clk 0:00:30]}  Qg7 {[%clk 0:00:08]} 28. Qh4 {[%clk 0:00:19]}  Rxf4 {[%clk 0:00:07]} 29. Qxf4 {[%clk 0:00:19]}  Bxg5 {[%clk 0:00:08]} 30. Qh2+ {[%clk 0:00:13]}  Qh6 {[%clk 0:00:08]} 31. Qxh6+ {[%clk 0:00:08]}  Bxh6 {[%clk 0:00:09]} 32. Be4 {[%clk 0:00:05]}  Bxe4 {[%clk 0:00:09]} 33. Rxe4 {[%clk 0:00:05]}  Bxc1 {[%clk 0:00:09]} 0-1


[Site "https://www.chess.com"]

[Event "Early Titled Tuesday Blitz | February 8 2022"]
[White "Shton, Roman"]
[Black "Winkels, Marcel"]
[WhiteFideId "14137461"]
[BlackFideId "1003887"]
[WhiteElo "2038"]
[BlackElo "1900"]
[Result "1-0"]
[Round "05"]
[TimeControl "180+1"]
[Date "2022.02.08"]
[WhiteClock "0:00:16"]
[BlackClock "0:00:01"]

1. d4 {[%clk 0:03:00]}  Nf6 {[%clk 0:02:58]} 2. Nf3 {[%clk 0:03:01]}  c5 {[%clk 0:02:56]} 3. d5 {[%clk 0:03:01]}  g6 {[%clk 0:02:55]} 4. Nc3 {[%clk 0:03:00]}  d6 {[%clk 0:02:53]} 5. e4 {[%clk 0:03:00]}  Bg7 {[%clk 0:02:52]} 6. Bc4 {[%clk 0:02:00]}  O-O {[%clk 0:02:49]} 7. O-O {[%clk 0:02:00]}  a6 {[%clk 0:02:37]} 8. a4 {[%clk 0:02:00]}  Bg4 {[%clk 0:02:32]} 9. h3 {[%clk 0:01:53]}  Bxf3 {[%clk 0:02:31]} 10. Qxf3 {[%clk 0:01:54]}  Nbd7 {[%clk 0:02:31]} 11. Qd1 {[%clk 0:01:42]}  Ne8 {[%clk 0:02:28]} 12. Re1 {[%clk 0:01:42]}  Nc7 {[%clk 0:02:23]} 13. a5 {[%clk 0:01:42]}  Ne5 {[%clk 0:02:16]} 14. Bf1 {[%clk 0:01:28]}  Rb8 {[%clk 0:02:16]} 15. Be3 {[%clk 0:01:18]}  b5 {[%clk 0:02:12]} 16. axb6 {[%clk 0:01:16]}  Rxb6 {[%clk 0:02:12]} 17. Ra2 {[%clk 0:01:13]}  f5 {[%clk 0:02:10]} 18. exf5 {[%clk 0:01:08]}  gxf5 {[%clk 0:02:09]} 19. f4 {[%clk 0:01:07]}  Ng6 {[%clk 0:02:03]} 20. Qh5 {[%clk 0:01:06]}  Qd7 {[%clk 0:01:48]} 21. Bd3 {[%clk 0:01:05]}  Nb5 {[%clk 0:01:46]} 22. Nd1 {[%clk 0:01:00]}  Nd4 {[%clk 0:01:43]} 23. Qg5 {[%clk 0:00:48]}  Qb7 {[%clk 0:01:34]} 24. c3 {[%clk 0:00:48]}  Nb5 {[%clk 0:01:26]} 25. Bxf5 {[%clk 0:00:46]}  Qxd5 {[%clk 0:01:11]} 26. Bxg6 {[%clk 0:00:46]}  Qxa2 {[%clk 0:01:09]} 27. Be4 {[%clk 0:00:41]}  Qf7 {[%clk 0:00:59]} 28. f5 {[%clk 0:00:41]}  Kh8 {[%clk 0:00:57]} 29. c4 {[%clk 0:00:41]}  Bf6 {[%clk 0:00:55]} 30. Qh6 {[%clk 0:00:39]}  Nd4 {[%clk 0:00:52]} 31. Bd5 {[%clk 0:00:39]}  Qg7 {[%clk 0:00:51]} 32. Qh5 {[%clk 0:00:39]}  Rb3 {[%clk 0:00:48]} 33. Bh6 {[%clk 0:00:39]}  Qg3 {[%clk 0:00:32]} 34. Re3 {[%clk 0:00:33]}  Rxe3 {[%clk 0:00:29]} 35. Nxe3 {[%clk 0:00:34]}  Rb8 {[%clk 0:00:22]} 36. Nf1 {[%clk 0:00:24]}  Qe1 {[%clk 0:00:18]} 37. Bf3 {[%clk 0:00:18]}  Nxf3+ {[%clk 0:00:16]} 38. Qxf3 {[%clk 0:00:18]}  Rg8 {[%clk 0:00:15]} 39. Bd2 {[%clk 0:00:17]}  Qe5 {[%clk 0:00:13]} 40. Bc3 {[%clk 0:00:16]}  Rxg2+ {[%clk 0:00:01]} 41. Kxg2 {[%clk 0:00:16]} 1-0


[Site "https://www.chess.com"]

[Event "Early Titled Tuesday Blitz | February 8 2022"]
[White "Shtyka, Sergey"]
[Black "Niyazgulova, Marina"]
[WhiteFideId "4138465"]
[BlackFideId "24142573"]
[WhiteElo "2014"]
[BlackElo "2075"]
[Result "1-0"]
[Round "05"]
[TimeControl "180+1"]
[Date "2022.02.08"]
[WhiteClock "0:00:25"]
[BlackClock "0:00:09"]

1. e4 {[%clk 0:02:49]}  d5 {[%clk 0:02:59]} 2. exd5 {[%clk 0:02:48]}  Qxd5 {[%clk 0:02:59]} 3. Nc3 {[%clk 0:02:48]}  Qd6 {[%clk 0:02:59]} 4. Nf3 {[%clk 0:02:46]}  Nf6 {[%clk 0:02:58]} 5. d4 {[%clk 0:02:46]}  c6 {[%clk 0:02:56]} 6. g3 {[%clk 0:02:46]}  Bg4 {[%clk 0:02:52]} 7. Bg2 {[%clk 0:02:45]}  e6 {[%clk 0:02:52]} 8. Bf4 {[%clk 0:02:44]}  Qb4 {[%clk 0:02:51]} 9. O-O {[%clk 0:02:40]}  Nbd7 {[%clk 0:02:23]} 10. Qd2 {[%clk 0:02:39]}  Be7 {[%clk 0:02:16]} 11. Ne5 {[%clk 0:02:27]}  Bf5 {[%clk 0:02:01]} 12. a3 {[%clk 0:02:14]}  Qb6 {[%clk 0:01:43]} 13. Nc4 {[%clk 0:02:13]}  Qd8 {[%clk 0:01:35]} 14. Nd6+ {[%clk 0:02:13]}  Bxd6 {[%clk 0:01:35]} 15. Bxd6 {[%clk 0:02:14]}  Nb6 {[%clk 0:01:32]} 16. Bc5 {[%clk 0:01:54]}  Nfd7 {[%clk 0:01:31]} 17. Qe2 {[%clk 0:01:45]}  Nxc5 {[%clk 0:01:23]} 18. dxc5 {[%clk 0:01:46]}  Nd5 {[%clk 0:01:24]} 19. Nxd5 {[%clk 0:01:40]}  cxd5 {[%clk 0:01:20]} 20. c4 {[%clk 0:01:39]}  O-O {[%clk 0:00:46]} 21. cxd5 {[%clk 0:01:38]}  exd5 {[%clk 0:00:46]} 22. Rfd1 {[%clk 0:01:37]}  Be6 {[%clk 0:00:28]} 23. b4 {[%clk 0:01:33]}  a5 {[%clk 0:00:24]} 24. b5 {[%clk 0:01:23]}  Qc7 {[%clk 0:00:20]} 25. Rac1 {[%clk 0:01:22]}  Rfd8 {[%clk 0:00:20]} 26. Qe3 {[%clk 0:01:18]}  a4 {[%clk 0:00:20]} 27. h4 {[%clk 0:01:11]}  h6 {[%clk 0:00:20]} 28. Qd4 {[%clk 0:01:09]}  Ra5 {[%clk 0:00:20]} 29. Qb4 {[%clk 0:01:05]}  Raa8 {[%clk 0:00:15]} 30. Rd2 {[%clk 0:00:59]}  f6 {[%clk 0:00:13]} 31. Qd4 {[%clk 0:00:53]}  Ra5 {[%clk 0:00:13]} 32. Qb4 {[%clk 0:00:52]}  Raa8 {[%clk 0:00:12]} 33. c6 {[%clk 0:00:52]}  bxc6 {[%clk 0:00:12]} 34. Rxc6 {[%clk 0:00:51]}  Qd7 {[%clk 0:00:12]} 35. Qc5 {[%clk 0:00:47]}  Bf7 {[%clk 0:00:12]} 36. Rc7 {[%clk 0:00:43]}  Qf5 {[%clk 0:00:11]} 37. b6 {[%clk 0:00:39]}  Rab8 {[%clk 0:00:11]} 38. Qe7 {[%clk 0:00:32]}  Qg6 {[%clk 0:00:10]} 39. b7 {[%clk 0:00:32]}  Re8 {[%clk 0:00:10]} 40. Qxf7+ {[%clk 0:00:26]}  Qxf7 {[%clk 0:00:10]} 41. Bxd5 {[%clk 0:00:26]}  Qxd5 {[%clk 0:00:09]} 42. Rxd5 {[%clk 0:00:26]}  Red8 {[%clk 0:00:09]} 43. Rxd8+ {[%clk 0:00:25]}  Rxd8 {[%clk 0:00:09]} 44. Rc8 {[%clk 0:00:25]} 1-0


[Site "https://www.chess.com"]

[Event "Early Titled Tuesday Blitz | February 8 2022"]
[White "Stanisz, Patryk"]
[Black "Kovanova, Baira"]
[WhiteFideId "1123106"]
[BlackFideId "4164083"]
[WhiteElo "1876"]
[BlackElo "2190"]
[Result "0-1"]
[Round "05"]
[TimeControl "180+1"]
[Date "2022.02.08"]
[WhiteClock "0:00:39"]
[BlackClock "0:00:09"]

1. Nf3 {[%clk 0:03:00]}  d5 {[%clk 0:02:57]} 2. g3 {[%clk 0:03:01]}  Nc6 {[%clk 0:02:55]} 3. Bg2 {[%clk 0:03:00]}  e5 {[%clk 0:02:55]} 4. c4 {[%clk 0:03:00]}  d4 {[%clk 0:02:45]} 5. d3 {[%clk 0:02:58]}  Nf6 {[%clk 0:02:40]} 6. O-O {[%clk 0:02:58]}  a5 {[%clk 0:02:36]} 7. e3 {[%clk 0:02:46]}  Bg4 {[%clk 0:02:14]} 8. e4 {[%clk 0:02:25]}  Be7 {[%clk 0:02:10]} 9. b3 {[%clk 0:02:23]}  O-O {[%clk 0:02:09]} 10. Ba3 {[%clk 0:02:24]}  Bxa3 {[%clk 0:01:58]} 11. Nxa3 {[%clk 0:02:24]}  Qd7 {[%clk 0:01:58]} 12. Nc2 {[%clk 0:02:25]}  Nh5 {[%clk 0:01:50]} 13. a3 {[%clk 0:02:19]}  f5 {[%clk 0:01:47]} 14. Qe1 {[%clk 0:02:17]}  f4 {[%clk 0:01:10]} 15. b4 {[%clk 0:02:13]}  axb4 {[%clk 0:01:01]} 16. axb4 {[%clk 0:02:10]}  Rxa1 {[%clk 0:00:59]} 17. Qxa1 {[%clk 0:02:11]}  Bh3 {[%clk 0:00:42]} 18. b5 {[%clk 0:02:05]}  Bxg2 {[%clk 0:00:42]} 19. Kxg2 {[%clk 0:02:06]}  Ne7 {[%clk 0:00:28]} 20. h3 {[%clk 0:02:06]}  Qe6 {[%clk 0:00:19]} 21. Nb4 {[%clk 0:01:53]}  fxg3 {[%clk 0:00:18]} 22. fxg3 {[%clk 0:01:53]}  Qg6 {[%clk 0:00:18]} 23. Nh4 {[%clk 0:01:39]}  Qxg3+ {[%clk 0:00:16]} 24. Kh1 {[%clk 0:01:35]}  Qxh3+ {[%clk 0:00:16]} 25. Kg1 {[%clk 0:01:35]}  Qxh4 {[%clk 0:00:15]} 26. Rxf8+ {[%clk 0:01:36]}  Kxf8 {[%clk 0:00:15]} 27. Qf1+ {[%clk 0:01:36]}  Kg8 {[%clk 0:00:15]} 28. Qf3 {[%clk 0:01:07]}  Nf4 {[%clk 0:00:15]} 29. Nd5 {[%clk 0:01:04]}  Nexd5 {[%clk 0:00:14]} 30. exd5 {[%clk 0:01:05]}  Qe1+ {[%clk 0:00:13]} 31. Kh2 {[%clk 0:01:04]}  Qd2+ {[%clk 0:00:14]} 32. Kg3 {[%clk 0:01:01]}  Qxd3 {[%clk 0:00:12]} 33. c5 {[%clk 0:00:53]}  Qg6+ {[%clk 0:00:11]} 34. Kf2 {[%clk 0:00:52]}  Qc2+ {[%clk 0:00:11]} 35. Kg3 {[%clk 0:00:52]}  Qxc5 {[%clk 0:00:11]} 36. Qg4 {[%clk 0:00:52]}  h6 {[%clk 0:00:11]} 37. Qc8+ {[%clk 0:00:51]}  Qf8 {[%clk 0:00:10]} 38. Qd7 {[%clk 0:00:49]}  Qd6 {[%clk 0:00:10]} 39. Qe8+ {[%clk 0:00:46]}  Kh7 {[%clk 0:00:10]} 40. Qf7 {[%clk 0:00:46]}  Qxd5 {[%clk 0:00:09]} 41. Qf5+ {[%clk 0:00:43]}  g6 {[%clk 0:00:09]} 42. Qf6 {[%clk 0:00:42]}  Qg2+ {[%clk 0:00:09]} 43. Kh4 {[%clk 0:00:41]}  g5+ {[%clk 0:00:09]} 44. Qxg5 {[%clk 0:00:39]}  hxg5# {[%clk 0:00:09]} 0-1


[Site "https://www.chess.com"]

[Event "Early Titled Tuesday Blitz | February 8 2022"]
[White "Svane, Frederik"]
[Black "Grandelius, Nils"]
[WhiteFideId "12923044"]
[BlackFideId "1710400"]
[WhiteElo "2459"]
[BlackElo "2617"]
[Result "0-1"]
[Round "05"]
[TimeControl "180+1"]
[Date "2022.02.08"]
[WhiteClock "0:00:02"]
[BlackClock "0:00:41"]

1. e4 {[%clk 0:03:00]}  c5 {[%clk 0:02:58]} 2. Nf3 {[%clk 0:02:57]}  e6 {[%clk 0:02:58]} 3. d4 {[%clk 0:02:57]}  cxd4 {[%clk 0:02:59]} 4. Nxd4 {[%clk 0:02:58]}  a6 {[%clk 0:03:00]} 5. Nc3 {[%clk 0:02:55]}  b5 {[%clk 0:02:59]} 6. Bd3 {[%clk 0:02:55]}  Qb6 {[%clk 0:02:59]} 7. Nf3 {[%clk 0:02:54]}  Qc7 {[%clk 0:02:59]} 8. O-O {[%clk 0:02:53]}  Bb7 {[%clk 0:02:59]} 9. Re1 {[%clk 0:02:46]}  Be7 {[%clk 0:02:59]} 10. e5 {[%clk 0:02:46]}  f5 {[%clk 0:03:00]} 11. Nh4 {[%clk 0:02:47]}  g6 {[%clk 0:03:00]} 12. Nxf5 {[%clk 0:02:45]}  exf5 {[%clk 0:02:58]} 13. Bf1 {[%clk 0:02:46]}  b4 {[%clk 0:02:47]} 14. Nd5 {[%clk 0:02:37]}  Bxd5 {[%clk 0:02:43]} 15. Qxd5 {[%clk 0:02:38]}  Qc6 {[%clk 0:02:42]} 16. Qb3 {[%clk 0:02:30]}  a5 {[%clk 0:02:32]} 17. Bc4 {[%clk 0:02:20]}  a4 {[%clk 0:02:27]} 18. Qd3 {[%clk 0:02:20]}  Ra5 {[%clk 0:02:25]} 19. Bf4 {[%clk 0:02:07]}  Na6 {[%clk 0:02:14]} 20. Rad1 {[%clk 0:01:58]}  Nc5 {[%clk 0:02:11]} 21. Qg3 {[%clk 0:00:34]}  Ne4 {[%clk 0:01:34]} 22. Qd3 {[%clk 0:00:33]}  Bc5 {[%clk 0:01:35]} 23. Bd5 {[%clk 0:00:05]}  Qxd5 {[%clk 0:01:25]} 24. Qxd5 {[%clk 0:00:06]}  Bxf2+ {[%clk 0:01:26]} 25. Kf1 {[%clk 0:00:06]}  Rxd5 {[%clk 0:01:27]} 26. Rxd5 {[%clk 0:00:06]}  Bxe1 {[%clk 0:01:27]} 27. Kxe1 {[%clk 0:00:07]}  Ne7 {[%clk 0:01:21]} 28. Rb5 {[%clk 0:00:03]}  Nc6 {[%clk 0:01:18]} 29. e6 {[%clk 0:00:03]}  Ke7 {[%clk 0:01:02]} 30. exd7 {[%clk 0:00:02]}  Rd8 {[%clk 0:01:01]} 31. h4 {[%clk 0:00:01]}  Rxd7 {[%clk 0:00:51]} 32. Rb6 {[%clk 0:00:01]}  Nd4 {[%clk 0:00:52]} 33. Kf1 {[%clk 0:00:02]}  Nxc2 {[%clk 0:00:50]} 34. g4 {[%clk 0:00:02]}  fxg4 {[%clk 0:00:41]} 0-1


[Site "https://www.chess.com"]